[Event "Early-Titled-Tuesday-Blitz-September-05-2023"]
[Site "Chess.com"]
[Date "2023.09.05"]
[Round "5"]
[White "Boxerandchessplayer"]
[Black "rikchessmx"]
[Result "0-1"]
[WhiteElo "2076"]
[BlackElo "2392"]
[TimeControl "180+1"]
[EndTime "8:51:48 PDT"]
[Termination "rikchessmx won by resignation"]

1. e4 {[%clk 0:02:58.2]} 1... e5 {[%clk 0:02:59.7]} 2. Nf3 {[%clk 0:02:56.1]}
2... Nc6 {[%clk 0:03:00.6]} 3. Bc4 {[%clk 0:02:56.1]} 3... Bc5 {[%clk
0:03:00.1]} 4. O-O {[%clk 0:02:55.2]} 4... d6 {[%clk 0:02:59.6]} 5. c3 {[%clk
0:02:52.7]} 5... Qf6 {[%clk 0:02:59.2]} 6. d3 {[%clk 0:02:50.2]} 6... h6 {[%clk
0:02:58.4]} 7. b4 {[%clk 0:02:45.5]} 7... Bb6 {[%clk 0:02:56.9]} 8. a4 {[%clk
0:02:45.9]} 8... a6 {[%clk 0:02:57]} 9. b5 {[%clk 0:02:46.5]} 9... axb5 {[%clk
0:02:56.6]} 10. Bxb5 {[%clk 0:02:46.1]} 10... Ne7 {[%clk 0:02:56.1]} 11. Be3
{[%clk 0:02:42.9]} 11... O-O {[%clk 0:02:52.8]} 12. Nbd2 {[%clk 0:02:41.9]}
12... Ng6 {[%clk 0:02:51.3]} 13. Bxb6 {[%clk 0:02:34.9]} 13... cxb6 {[%clk
0:02:51]} 14. g3 {[%clk 0:01:44.4]} 14... Bh3 {[%clk 0:02:49.5]} 15. Re1 {[%clk
0:01:43.6]} 15... Na5 {[%clk 0:02:46.8]} 16. Qe2 {[%clk 0:01:30.1]} 16... Rac8
{[%clk 0:02:45.6]} 17. c4 {[%clk 0:01:29.1]} 17... Nc6 {[%clk 0:02:43]} 18. Qe3
{[%clk 0:01:28.3]} 18... Nf4 {[%clk 0:02:38.1]} 19. gxf4 {[%clk 0:01:08.5]}
19... exf4 {[%clk 0:02:37]} 20. Kh1 {[%clk 0:00:33.5]} 20... fxe3 {[%clk
0:02:32.8]} 21. fxe3 {[%clk 0:00:34.4]} 21... Nb4 {[%clk 0:02:30.8]} 22. e5
{[%clk 0:00:09.7]} 22... dxe5 {[%clk 0:02:28.4]} 23. Ne4 {[%clk 0:00:07]} 23...
Qxf3+ {[%clk 0:02:25.1]} 0-1

[Event "Early-Titled-Tuesday-Blitz-September-05-2023"]
[Site "Chess.com"]
[Date "2023.09.05"]
[Round "5"]
[White "Dmitry_Konenkin"]
[Black "Bobbybunny"]
[Result "1-0"]
[WhiteElo "2396"]
[BlackElo "2152"]
[TimeControl "180+1"]
[EndTime "8:51:57 PDT"]
[Termination "Dmitry_Konenkin won by resignation"]

1. d4 {[%clk 0:03:00.9]} 1... Nf6 {[%clk 0:02:58.6]} 2. Bg5 {[%clk 0:03:01]}
2... Nc6 {[%clk 0:02:57.2]} 3. d5 {[%clk 0:02:56.9]} 3... Ne5 {[%clk 0:02:56]}
4. f4 {[%clk 0:02:56.7]} 4... Ng6 {[%clk 0:02:54.8]} 5. f5 {[%clk 0:02:51.7]}
5... Ne5 {[%clk 0:02:53.3]} 6. Qd4 {[%clk 0:02:46.9]} 6... d6 {[%clk 0:02:52.4]}
7. Nf3 {[%clk 0:02:43.7]} 7... Nxf3+ {[%clk 0:02:46.8]} 8. gxf3 {[%clk
0:02:44.6]} 8... Bxf5 {[%clk 0:02:45]} 9. e4 {[%clk 0:02:45]} 9... Bd7 {[%clk
0:02:37]} 10. c4 {[%clk 0:02:44.6]} 10... e5 {[%clk 0:02:36]} 11. dxe6 {[%clk
0:02:43.4]} 11... fxe6 {[%clk 0:02:34]} 12. Nc3 {[%clk 0:02:42.6]} 12... Be7
{[%clk 0:02:29.7]} 13. O-O-O {[%clk 0:02:42.3]} 13... O-O {[%clk 0:02:28.7]} 14.
h4 {[%clk 0:02:41.7]} 14... e5 {[%clk 0:02:21.7]} 15. Qd2 {[%clk 0:02:40]} 15...
Be6 {[%clk 0:02:21.4]} 16. Bd3 {[%clk 0:02:33.7]} 16... c6 {[%clk 0:02:17.6]}
17. Rdg1 {[%clk 0:02:32.3]} 17... Kh8 {[%clk 0:02:16.1]} 18. h5 {[%clk
0:02:32.1]} 18... Nd7 {[%clk 0:02:09.2]} 19. h6 {[%clk 0:02:28.8]} 19... g6
{[%clk 0:02:07.9]} 20. Be3 {[%clk 0:02:25.2]} 20... b6 {[%clk 0:02:03.8]} 21. f4
{[%clk 0:02:16.3]} 21... exf4 {[%clk 0:01:56.9]} 22. Bxf4 {[%clk 0:02:17.2]}
22... Ne5 {[%clk 0:01:56.6]} 23. Be2 {[%clk 0:02:11.7]} 23... Nxc4 {[%clk
0:01:38.3]} 24. Bxc4 {[%clk 0:02:10.9]} 24... Bxc4 {[%clk 0:01:38.1]} 25. Qd4+
{[%clk 0:02:08.8]} 25... Rf6 {[%clk 0:01:25.6]} 26. Bg5 {[%clk 0:02:04.4]} 26...
b5 {[%clk 0:01:12.4]} 27. b3 {[%clk 0:01:58.7]} 27... Be6 {[%clk 0:01:01.1]} 28.
Rf1 {[%clk 0:01:56.7]} 28... b4 {[%clk 0:00:55.9]} 29. Rxf6 {[%clk 0:01:46.7]}
29... Kg8 {[%clk 0:00:49.1]} 30. Rxg6+ {[%clk 0:01:46.6]} 1-0

[Event "Early-Titled-Tuesday-Blitz-September-05-2023"]
[Site "Chess.com"]
[Date "2023.09.05"]
[Round "5"]
[White "Murad_Ibrahimli"]
[Black "Hikaru"]
[Result "0-1"]
[WhiteElo "2863"]
[BlackElo "3266"]
[TimeControl "180+1"]
[EndTime "8:52:10 PDT"]
[Termination "Hikaru won by resignation"]

1. d4 {[%clk 0:03:00.9]} 1... a6 {[%clk 0:02:57.1]} 2. e4 {[%clk 0:02:59.5]}
2... c6 {[%clk 0:02:56]} 3. c4 {[%clk 0:02:56]} 3... d6 {[%clk 0:02:55.9]} 4.
Nc3 {[%clk 0:02:55.5]} 4... b5 {[%clk 0:02:56.1]} 5. Bd3 {[%clk 0:02:53.8]} 5...
g6 {[%clk 0:02:55.2]} 6. a3 {[%clk 0:02:50.5]} 6... Bg7 {[%clk 0:02:55]} 7. Nge2
{[%clk 0:02:50.6]} 7... Nf6 {[%clk 0:02:52]} 8. O-O {[%clk 0:02:49.2]} 8... O-O
{[%clk 0:02:50.5]} 9. Bg5 {[%clk 0:02:46.9]} 9... h6 {[%clk 0:02:46.7]} 10. Bd2
{[%clk 0:02:45.9]} 10... e5 {[%clk 0:02:46.8]} 11. d5 {[%clk 0:02:44.4]} 11...
cxd5 {[%clk 0:02:30.9]} 12. cxd5 {[%clk 0:02:43.5]} 12... Nbd7 {[%clk 0:02:31]}
13. Be3 {[%clk 0:02:40]} 13... Nb6 {[%clk 0:02:14.2]} 14. f3 {[%clk 0:02:32.4]}
14... Nfd7 {[%clk 0:02:12.1]} 15. b4 {[%clk 0:02:23.5]} 15... f5 {[%clk
0:02:08.7]} 16. a4 {[%clk 0:02:21.5]} 16... bxa4 {[%clk 0:02:07.8]} 17. Nxa4
{[%clk 0:02:22.4]} 17... Nxa4 {[%clk 0:02:00.6]} 18. Qxa4 {[%clk 0:02:19.7]}
18... Nf6 {[%clk 0:02:00.9]} 19. Qc6 {[%clk 0:02:08.8]} 19... Rb8 {[%clk
0:02:01]} 20. Rab1 {[%clk 0:01:53.5]} 20... fxe4 {[%clk 0:01:24.6]} 21. fxe4
{[%clk 0:01:52.5]} 21... Ng4 {[%clk 0:01:25]} 22. Bd2 {[%clk 0:01:04.4]} 22...
Bb7 {[%clk 0:01:15.9]} 23. Qc1 {[%clk 0:00:52.6]} 23... Qb6+ {[%clk 0:01:15.8]}
24. Kh1 {[%clk 0:00:52.6]} 24... Rxf1+ {[%clk 0:01:15.6]} 0-1

[Event "Early-Titled-Tuesday-Blitz-September-05-2023"]
[Site "Chess.com"]
[Date "2023.09.05"]
[Round "5"]
[White "Grossboss19"]
[Black "Ramosha"]
[Result "1-0"]
[WhiteElo "2503"]
[BlackElo "2645"]
[TimeControl "180+1"]
[EndTime "8:52:11 PDT"]
[Termination "Grossboss19 won by checkmate"]

1. c4 {[%clk 0:02:36.1]} 1... d5 {[%clk 0:02:58.3]} 2. cxd5 {[%clk 0:02:35.2]}
2... Qxd5 {[%clk 0:02:59.2]} 3. Nc3 {[%clk 0:02:34.9]} 3... Qd8 {[%clk
0:02:59.8]} 4. d4 {[%clk 0:02:32.9]} 4... Nf6 {[%clk 0:03:00]} 5. e4 {[%clk
0:02:29.1]} 5... e5 {[%clk 0:02:59.2]} 6. d5 {[%clk 0:02:23.8]} 6... Bc5 {[%clk
0:02:58.9]} 7. Na4 {[%clk 0:02:16.1]} 7... Bb6 {[%clk 0:02:52.3]} 8. Nf3 {[%clk
0:02:12]} 8... Nxe4 {[%clk 0:02:50.6]} 9. Nxb6 {[%clk 0:02:10.4]} 9... axb6
{[%clk 0:02:50.6]} 10. Bb5+ {[%clk 0:02:02]} 10... c6 {[%clk 0:02:48.8]} 11. Bc4
{[%clk 0:01:57.7]} 11... Nd6 {[%clk 0:02:46.7]} 12. Bb3 {[%clk 0:01:53.4]} 12...
O-O {[%clk 0:02:46.3]} 13. O-O {[%clk 0:01:53.1]} 13... Bg4 {[%clk 0:02:46.2]}
14. h3 {[%clk 0:01:52.7]} 14... Bxf3 {[%clk 0:02:43.7]} 15. Qxf3 {[%clk
0:01:53.6]} 15... c5 {[%clk 0:02:43.7]} 16. Re1 {[%clk 0:01:48.6]} 16... Nd7
{[%clk 0:02:43.2]} 17. Bc2 {[%clk 0:01:37.4]} 17... Re8 {[%clk 0:02:40.2]} 18.
b3 {[%clk 0:01:22]} 18... Qf6 {[%clk 0:02:37.6]} 19. Qg4 {[%clk 0:01:16.7]}
19... Qe7 {[%clk 0:02:26]} 20. Bg5 {[%clk 0:01:11.8]} 20... f6 {[%clk
0:02:25.9]} 21. Bd2 {[%clk 0:01:07.7]} 21... Nf8 {[%clk 0:02:24.3]} 22. f4
{[%clk 0:01:03.6]} 22... e4 {[%clk 0:02:18.2]} 23. f5 {[%clk 0:00:57.2]} 23...
Qf7 {[%clk 0:02:15.9]} 24. Bf4 {[%clk 0:00:49.4]} 24... Qxd5 {[%clk 0:02:13]}
25. Rad1 {[%clk 0:00:47.3]} 25... Qf7 {[%clk 0:02:09.2]} 26. Bxd6 {[%clk
0:00:45.8]} 26... Rxa2 {[%clk 0:02:07.6]} 27. Bxe4 {[%clk 0:00:45]} 27... h5
{[%clk 0:02:06.8]} 28. Qf3 {[%clk 0:00:39.5]} 28... Kh8 {[%clk 0:01:57.7]} 29.
Bd5 {[%clk 0:00:37.7]} 29... Rxe1+ {[%clk 0:01:57.3]} 30. Rxe1 {[%clk
0:00:37.6]} 30... Qd7 {[%clk 0:01:57.4]} 31. Qxh5+ {[%clk 0:00:33.5]} 31... Nh7
{[%clk 0:01:56.8]} 32. Re8+ {[%clk 0:00:33.6]} 32... Qxe8 {[%clk 0:01:56.8]} 33.
Qxe8+ {[%clk 0:00:33.5]} 33... Nf8 {[%clk 0:01:57.7]} 34. Bxf8 {[%clk
0:00:29.3]} 34... Kh7 {[%clk 0:01:58.6]} 35. Qh5# {[%clk 0:00:28.5]} 1-0

[Event "Early-Titled-Tuesday-Blitz-September-05-2023"]
[Site "Chess.com"]
[Date "2023.09.05"]
[Round "5"]
[White "Casablanca"]
[Black "artin10862"]
[Result "0-1"]
[WhiteElo "2703"]
[BlackElo "2976"]
[TimeControl "180+1"]
[EndTime "8:52:22 PDT"]
[Termination "artin10862 won by checkmate"]

1. d4 {[%clk 0:03:00.9]} 1... Nf6 {[%clk 0:02:56.3]} 2. Bg5 {[%clk 0:02:59.3]}
2... c5 {[%clk 0:02:47.8]} 3. Nc3 {[%clk 0:02:58.8]} 3... cxd4 {[%clk
0:02:46.5]} 4. Qxd4 {[%clk 0:02:59.7]} 4... Nc6 {[%clk 0:02:46.3]} 5. Qh4 {[%clk
0:03:00.4]} 5... b5 {[%clk 0:02:28.6]} 6. e4 {[%clk 0:02:51.8]} 6... b4 {[%clk
0:02:28.1]} 7. Nd5 {[%clk 0:02:52.1]} 7... Qa5 {[%clk 0:02:19.4]} 8. O-O-O
{[%clk 0:02:30.9]} 8... Qxa2 {[%clk 0:01:55.6]} 9. Nc7+ {[%clk 0:02:30.7]} 9...
Kd8 {[%clk 0:01:54.8]} 10. Nxa8 {[%clk 0:02:31.6]} 10... Qa1+ {[%clk 0:01:54.3]}
11. Kd2 {[%clk 0:02:32.2]} 11... Qxb2 {[%clk 0:01:53.8]} 12. Bd3 {[%clk
0:02:26.3]} 12... Qc3+ {[%clk 0:01:46.8]} 13. Ke2 {[%clk 0:02:26]} 13... b3
{[%clk 0:01:21.1]} 14. Qf4 {[%clk 0:01:39.8]} 14... Nd4+ {[%clk 0:01:08.6]} 15.
Kf1 {[%clk 0:01:36.5]} 15... bxc2 {[%clk 0:01:05.3]} 16. Bxc2 {[%clk 0:01:36.9]}
16... Ba6+ {[%clk 0:00:50.5]} 17. Ne2 {[%clk 0:01:05]} 17... Bxe2+ {[%clk
0:00:46.7]} 18. Kg1 {[%clk 0:01:04.9]} 18... Bxd1 {[%clk 0:00:46.3]} 19. Bxd1
{[%clk 0:00:56.7]} 19... Qe1# {[%clk 0:00:45.6]} 0-1

[Event "Early-Titled-Tuesday-Blitz-September-05-2023"]
[Site "Chess.com"]
[Date "2023.09.05"]
[Round "5"]
[White "Mariia89"]
[Black "Nick12772"]
[Result "0-1"]
[WhiteElo "1965"]
[BlackElo "2322"]
[TimeControl "180+1"]
[EndTime "8:52:25 PDT"]
[Termination "Nick12772 won by resignation"]

1. d4 {[%clk 0:02:57.9]} 1... Nf6 {[%clk 0:03:00.2]} 2. Nf3 {[%clk 0:02:58.5]}
2... g6 {[%clk 0:03:00.6]} 3. c4 {[%clk 0:02:59]} 3... Bg7 {[%clk 0:03:01.2]} 4.
Nc3 {[%clk 0:02:59.9]} 4... d5 {[%clk 0:03:01.8]} 5. Bg5 {[%clk 0:03:00]} 5...
Ne4 {[%clk 0:03:02.2]} 6. cxd5 {[%clk 0:03:00.1]} 6... Nxg5 {[%clk 0:03:02.5]}
7. Nxg5 {[%clk 0:03:01]} 7... e6 {[%clk 0:03:03.2]} 8. Nf3 {[%clk 0:03:01.4]}
8... exd5 {[%clk 0:03:03.7]} 9. e3 {[%clk 0:03:02.3]} 9... O-O {[%clk
0:03:04.2]} 10. Be2 {[%clk 0:03:03.2]} 10... c6 {[%clk 0:03:04.1]} 11. O-O
{[%clk 0:03:03.7]} 11... Bf5 {[%clk 0:03:03.6]} 12. b4 {[%clk 0:03:02.4]} 12...
a6 {[%clk 0:03:03.7]} 13. Na4 {[%clk 0:02:54.2]} 13... Nd7 {[%clk 0:03:03.5]}
14. Nc5 {[%clk 0:02:54.6]} 14... Qc7 {[%clk 0:02:46.1]} 15. Rc1 {[%clk
0:02:43.8]} 15... Rfb8 {[%clk 0:02:32.7]} 16. Nh4 {[%clk 0:02:40.6]} 16... Nxc5
{[%clk 0:02:18.6]} 17. Nxf5 {[%clk 0:02:30.6]} 17... Ne6 {[%clk 0:02:12.7]} 18.
Ng3 {[%clk 0:02:13.8]} 18... Qd6 {[%clk 0:02:09.4]} 19. Qb3 {[%clk 0:02:10.4]}
19... h5 {[%clk 0:02:01.7]} 20. Bd3 {[%clk 0:01:58.5]} 20... Re8 {[%clk
0:01:53.8]} 21. Rc2 {[%clk 0:01:47.9]} 21... h4 {[%clk 0:01:47]} 22. Ne2 {[%clk
0:01:44.8]} 22... Ng5 {[%clk 0:01:47.4]} 23. Rfc1 {[%clk 0:01:41.8]} 23... h3
{[%clk 0:01:46.2]} 24. Nf4 {[%clk 0:01:38.5]} 24... hxg2 {[%clk 0:01:32.9]} 25.
Kxg2 {[%clk 0:01:37.8]} 25... Ne4 {[%clk 0:01:17.5]} 26. Bxe4 {[%clk 0:01:32.7]}
26... Rxe4 {[%clk 0:01:16.8]} 27. a4 {[%clk 0:01:23.9]} 27... Bxd4 {[%clk
0:01:14.6]} 28. exd4 {[%clk 0:01:22.6]} 28... Qxf4 {[%clk 0:01:12.1]} 29. Qg3
{[%clk 0:01:11.3]} 29... Rxd4 {[%clk 0:01:08.9]} 0-1

[Event "Early-Titled-Tuesday-Blitz-September-05-2023"]
[Site "Chess.com"]
[Date "2023.09.05"]
[Round "5"]
[White "WiktoriaPOL"]
[Black "DanielTitichoca"]
[Result "1-0"]
[WhiteElo "2294"]
[BlackElo "2428"]
[TimeControl "180+1"]
[EndTime "8:52:34 PDT"]
[Termination "WiktoriaPOL won by resignation"]

1. c4 {[%clk 0:02:58.9]} 1... e5 {[%clk 0:02:43.9]} 2. Nc3 {[%clk 0:02:57.5]}
2... f5 {[%clk 0:02:40.7]} 3. d4 {[%clk 0:02:54]} 3... e4 {[%clk 0:02:36.9]} 4.
g3 {[%clk 0:02:52.7]} 4... Bb4 {[%clk 0:02:36.9]} 5. Nh3 {[%clk 0:02:43.5]} 5...
Bxc3+ {[%clk 0:02:35.1]} 6. bxc3 {[%clk 0:02:40.2]} 6... d6 {[%clk 0:02:35.8]}
7. Qb3 {[%clk 0:02:33.5]} 7... Nc6 {[%clk 0:02:35.3]} 8. Bg2 {[%clk 0:01:50]}
8... b6 {[%clk 0:02:31.1]} 9. Nf4 {[%clk 0:01:39.8]} 9... Na5 {[%clk 0:02:27.1]}
10. Qb4 {[%clk 0:01:16.2]} 10... c5 {[%clk 0:02:26.4]} 11. Qb1 {[%clk
0:00:55.8]} 11... Nf6 {[%clk 0:02:23]} 12. e3 {[%clk 0:00:30.7]} 12... Ba6
{[%clk 0:02:17.8]} 13. O-O {[%clk 0:00:21.3]} 13... Bxc4 {[%clk 0:02:16.9]} 14.
Rd1 {[%clk 0:00:20]} 14... Qe7 {[%clk 0:02:16]} 15. dxc5 {[%clk 0:00:18.2]}
15... dxc5 {[%clk 0:02:16.9]} 16. Bf1 {[%clk 0:00:09.4]} 16... Bxf1 {[%clk
0:02:17]} 17. Kxf1 {[%clk 0:00:09.2]} 17... O-O {[%clk 0:02:17.7]} 18. Qb5
{[%clk 0:00:04.4]} 18... Rfd8 {[%clk 0:02:17.3]} 19. Ba3 {[%clk 0:00:04.2]}
19... Qe5 {[%clk 0:02:12.7]} 20. Bb2 {[%clk 0:00:02.7]} 20... Ng4 {[%clk
0:02:09.5]} 21. h3 {[%clk 0:00:02.5]} 21... Nh2+ {[%clk 0:02:08.7]} 22. Kg2
{[%clk 0:00:02.9]} 22... Nf3 {[%clk 0:02:09.6]} 23. Rxd8+ {[%clk 0:00:01.7]}
23... Rxd8 {[%clk 0:02:09]} 24. Qa6 {[%clk 0:00:02.2]} 24... Qc7 {[%clk
0:02:00.3]} 25. Qb5 {[%clk 0:00:02.7]} 25... Rd2 {[%clk 0:01:56.3]} 26. Ne6
{[%clk 0:00:02.9]} 26... Qd6 {[%clk 0:01:51.8]} 27. Qe8+ {[%clk 0:00:02.8]} 1-0

[Event "Early-Titled-Tuesday-Blitz-September-05-2023"]
[Site "Chess.com"]
[Date "2023.09.05"]
[Round "5"]
[White "blitzo_vich"]
[Black "topin8"]
[Result "1-0"]
[WhiteElo "2617"]
[BlackElo "2467"]
[TimeControl "180+1"]
[EndTime "8:52:36 PDT"]
[Termination "blitzo_vich won on time"]

1. c4 {[%clk 0:02:57.6]} 1... c5 {[%clk 0:02:59.5]} 2. Nf3 {[%clk 0:02:56.4]}
2... Nc6 {[%clk 0:02:59.9]} 3. Nc3 {[%clk 0:02:56.3]} 3... g6 {[%clk 0:02:55]}
4. e3 {[%clk 0:02:55.9]} 4... Bg7 {[%clk 0:02:55]} 5. d4 {[%clk 0:02:56.4]} 5...
cxd4 {[%clk 0:02:53.2]} 6. exd4 {[%clk 0:02:57.3]} 6... d6 {[%clk 0:02:53.9]} 7.
Be2 {[%clk 0:02:55.5]} 7... Nf6 {[%clk 0:02:54.1]} 8. d5 {[%clk 0:02:54.5]} 8...
Nb8 {[%clk 0:02:49.2]} 9. O-O {[%clk 0:02:52.8]} 9... O-O {[%clk 0:02:49.3]} 10.
Be3 {[%clk 0:02:51.2]} 10... Bf5 {[%clk 0:02:28.6]} 11. Nd4 {[%clk 0:02:48.7]}
11... Bd7 {[%clk 0:02:28.6]} 12. b4 {[%clk 0:02:46.1]} 12... Na6 {[%clk
0:02:24]} 13. a3 {[%clk 0:02:40.7]} 13... Rc8 {[%clk 0:02:21.6]} 14. Rc1 {[%clk
0:02:38.8]} 14... h5 {[%clk 0:01:46.8]} 15. h3 {[%clk 0:02:36.5]} 15... Nc7
{[%clk 0:01:35.1]} 16. Bf3 {[%clk 0:02:31.2]} 16... Na6 {[%clk 0:01:25.2]} 17.
Qb3 {[%clk 0:02:22.4]} 17... Nh7 {[%clk 0:01:21.1]} 18. Ndb5 {[%clk 0:02:16.1]}
18... Bxc3 {[%clk 0:00:24.6]} 19. Rxc3 {[%clk 0:01:53.1]} 19... Bxb5 {[%clk
0:00:24.4]} 20. cxb5 {[%clk 0:01:54]} 20... Nc7 {[%clk 0:00:24.3]} 21. Rfc1
{[%clk 0:01:45.7]} 21... Qd7 {[%clk 0:00:22.6]} 22. Qc2 {[%clk 0:01:39.7]} 1-0

[Event "Early-Titled-Tuesday-Blitz-September-05-2023"]
[Site "Chess.com"]
[Date "2023.09.05"]
[Round "5"]
[White "AttilaTurzo"]
[Black "campochess"]
[Result "1-0"]
[WhiteElo "2533"]
[BlackElo "2191"]
[TimeControl "180+1"]
[EndTime "8:52:42 PDT"]
[Termination "AttilaTurzo won by resignation"]

1. d4 {[%clk 0:03:00.9]} 1... c5 {[%clk 0:02:59.4]} 2. d5 {[%clk 0:02:58.9]}
2... Nf6 {[%clk 0:02:56.4]} 3. Nc3 {[%clk 0:02:58.7]} 3... g6 {[%clk 0:02:56.2]}
4. e4 {[%clk 0:02:58.6]} 4... d6 {[%clk 0:02:56.3]} 5. Bb5+ {[%clk 0:02:57.9]}
5... Nbd7 {[%clk 0:02:54.4]} 6. a4 {[%clk 0:02:57.6]} 6... a6 {[%clk 0:02:54.5]}
7. Be2 {[%clk 0:02:57.8]} 7... Bg7 {[%clk 0:02:53.8]} 8. Nf3 {[%clk 0:02:57.9]}
8... Qc7 {[%clk 0:02:51.1]} 9. O-O {[%clk 0:02:57.2]} 9... O-O {[%clk
0:02:50.4]} 10. h3 {[%clk 0:02:54.7]} 10... Rd8 {[%clk 0:02:39.5]} 11. Bf4
{[%clk 0:02:54.7]} 11... Nh5 {[%clk 0:02:36.9]} 12. Bh2 {[%clk 0:02:54.2]} 12...
Bxc3 {[%clk 0:02:30.8]} 13. bxc3 {[%clk 0:02:52.4]} 13... Qa5 {[%clk 0:02:30.7]}
14. c4 {[%clk 0:02:48.3]} 14... Qc3 {[%clk 0:02:24.2]} 15. Rb1 {[%clk
0:02:34.1]} 15... Qg7 {[%clk 0:02:16.4]} 16. Nd2 {[%clk 0:02:27.7]} 16... Nhf6
{[%clk 0:02:14.9]} 17. f4 {[%clk 0:02:28.1]} 17... e6 {[%clk 0:02:07.2]} 18. Kh1
{[%clk 0:02:14.4]} 18... Nb6 {[%clk 0:02:05.9]} 19. e5 {[%clk 0:02:07.4]} 19...
Nfd7 {[%clk 0:02:00.3]} 20. Ne4 {[%clk 0:02:00.5]} 20... dxe5 {[%clk 0:01:52.7]}
21. fxe5 {[%clk 0:02:01.4]} 21... exd5 {[%clk 0:01:50.7]} 22. cxd5 {[%clk
0:01:58.4]} 22... Nxa4 {[%clk 0:01:50.5]} 23. c4 {[%clk 0:01:51.9]} 23... Nxe5
{[%clk 0:01:49.4]} 24. Nf6+ {[%clk 0:01:48.3]} 24... Kh8 {[%clk 0:01:45.8]} 25.
Bxe5 {[%clk 0:01:48.2]} 25... Re8 {[%clk 0:01:33.9]} 26. Ba1 {[%clk 0:01:39]}
26... Re3 {[%clk 0:01:29.8]} 27. Qd2 {[%clk 0:01:31.1]} 27... Ra3 {[%clk
0:01:00.1]} 28. Ne8 {[%clk 0:01:26.2]} 28... Rxa1 {[%clk 0:00:54.2]} 29. Nxg7
{[%clk 0:01:25.2]} 29... Rxb1 {[%clk 0:00:53.8]} 30. Rxb1 {[%clk 0:01:25]} 30...
Kxg7 {[%clk 0:00:52.8]} 31. Qa5 {[%clk 0:01:17.8]} 31... b5 {[%clk 0:00:50.3]}
32. cxb5 {[%clk 0:01:17.2]} 32... Bf5 {[%clk 0:00:49.9]} 33. Qxa4 {[%clk
0:01:14.7]} 33... Bxb1 {[%clk 0:00:48.2]} 34. Qa1+ {[%clk 0:01:15.2]} 34... Kg8
{[%clk 0:00:46.7]} 35. Qxb1 {[%clk 0:01:16.1]} 35... axb5 {[%clk 0:00:46.6]} 36.
Qxb5 {[%clk 0:01:16.1]} 1-0

[Event "Early-Titled-Tuesday-Blitz-September-05-2023"]
[Site "Chess.com"]
[Date "2023.09.05"]
[Round "5"]
[White "WindWhistler11"]
[Black "Rutricks"]
[Result "0-1"]
[WhiteElo "2481"]
[BlackElo "2648"]
[TimeControl "180+1"]
[EndTime "8:52:45 PDT"]
[Termination "Rutricks won by resignation"]

1. Nf3 {[%clk 0:02:59]} 1... g6 {[%clk 0:03:00.1]} 2. g3 {[%clk 0:02:59.1]} 2...
Bg7 {[%clk 0:03:01]} 3. Bg2 {[%clk 0:02:59.2]} 3... Nf6 {[%clk 0:03:01.3]} 4. d4
{[%clk 0:02:59.4]} 4... O-O {[%clk 0:03:02.2]} 5. b3 {[%clk 0:03:00]} 5... d6
{[%clk 0:03:03.1]} 6. Bb2 {[%clk 0:03:00.6]} 6... Nbd7 {[%clk 0:03:03.8]} 7. O-O
{[%clk 0:03:00.8]} 7... c5 {[%clk 0:03:04.7]} 8. Nc3 {[%clk 0:02:55.6]} 8... Rb8
{[%clk 0:03:02.8]} 9. a4 {[%clk 0:02:50.1]} 9... a6 {[%clk 0:03:02.7]} 10. a5
{[%clk 0:02:47.4]} 10... b5 {[%clk 0:03:02.3]} 11. axb6 {[%clk 0:02:46.9]} 11...
Qxb6 {[%clk 0:03:00.1]} 12. e4 {[%clk 0:02:37.1]} 12... cxd4 {[%clk 0:02:59.7]}
13. Na4 {[%clk 0:02:37.4]} 13... Qc7 {[%clk 0:02:58.4]} 14. Bxd4 {[%clk
0:02:33.6]} 14... Nxe4 {[%clk 0:02:56.5]} 15. Re1 {[%clk 0:02:21.7]} 15... Ndf6
{[%clk 0:02:42]} 16. Qd3 {[%clk 0:01:20.9]} 16... Bf5 {[%clk 0:01:54.8]} 17. Nh4
{[%clk 0:00:38.7]} 17... Nxf2 {[%clk 0:01:41.8]} 18. Qe2 {[%clk 0:00:23.8]}
18... Nh3+ {[%clk 0:01:35.9]} 19. Kh1 {[%clk 0:00:20]} 19... Be6 {[%clk
0:01:36.3]} 20. Qxa6 {[%clk 0:00:11.9]} 20... Qxc2 {[%clk 0:01:35.9]} 21. Rxe6
{[%clk 0:00:09.8]} 21... fxe6 {[%clk 0:01:36.3]} 22. Bxh3 {[%clk 0:00:10]} 22...
Qe4+ {[%clk 0:01:36.9]} 23. Ng2 {[%clk 0:00:06.2]} 23... Qxd4 {[%clk 0:01:36.3]}
24. Re1 {[%clk 0:00:06.9]} 24... Ne4 {[%clk 0:01:36.3]} 25. Bxe6+ {[%clk
0:00:05.8]} 25... Kh8 {[%clk 0:01:37]} 26. h3 {[%clk 0:00:05.9]} 26... Nxg3+
{[%clk 0:01:36.1]} 27. Kh2 {[%clk 0:00:06.4]} 27... Be5 {[%clk 0:01:35.3]} 0-1